fUST/lending_fUST_20260525
["ID","MTS","AMOUNT","RATE_DAILY","PERIOD"]
[422982849,1779705033000,-791.80906425,0.00018237,2]
[422982851,1779705033000,-1602.5598733,0.00018348,2]
[422982848,1779705033000,-280.854612,0.00017981,2]
[422982850,1779705033000,-3164.06902075,0.00018237,2]
[422982853,1779705033000,-1000.0,0.00018858,2]
[422982813,1779705033000,-500.0,0.00013698,2]
[422982854,1779705033000,-1000.0,0.00018858,2]
[422982860,1779705033000,-160.0,0.00019433,2]
[422982856,1779705033000,-160.0,0.00019075,2]
[422982857,1779705033000,-1441.709992,0.00019075,2]
[422982855,1779705033000,-396.769151,0.0001888,2]
[422982859,1779705033000,-312.0,0.00019347,2]
[422982858,1779705033000,-2723.419984,0.00019075,2]
[422982861,1779705033000,-1645.27917,0.00019433,2]
[422982864,1779705033000,-323.029881,0.00019479,2]
[422982863,1779705033000,-160.0,0.00019479,2]
[422982862,1779705033000,-3130.558341,0.00019433,2]
[422982865,1779705033000,-486.059763,0.00019479,2]
[422982867,1779705033000,-151.0,0.00019479,2]
[422982868,1779705033000,-151.0,0.00019479,2]
[422982871,1779705033000,-110.97254545,0.00019481,2]
[422982870,1779705033000,-678.543932,0.00019481,2]
[422982869,1779705033000,-160.0,0.00019481,2]
[422982872,1779705033000,-421.91664867,0.00019481,2]
[422982845,1779705033000,-185.0,0.00017956,2]
[422982847,1779705033000,-220.427306,0.00017981,2]
[422982852,1779705033000,-2367.54584623,0.00018491,5]
[422982843,1779705033000,-285.0,0.00017347,2]
[422982816,1779705033000,-151.0,0.00013699,2]
[422982818,1779705033000,-151.0,0.00013699,2]
[422982817,1779705033000,-151.0,0.00013699,2]
[422982846,1779705033000,-160.0,0.00017981,2]
[422982821,1779705033000,-175.80238793,0.00013699,7]
[422982820,1779705033000,-151.0,0.00013699,2]
[422982819,1779705033000,-274.790194,0.00013699,2]
[422982824,1779705033000,-160.723081,0.00013857,2]
[422982822,1779705033000,-160.723081,0.00013857,2]
[422982823,1779705033000,-160.723081,0.00013857,2]
[422982825,1779705033000,-160.723081,0.00013857,2]
[422982827,1779705033000,-786.56,0.00013972,2]
[422982826,1779705033000,-500.0,0.00013972,2]
[422982815,1779705033000,-1000.0,0.00013699,2]
[422982828,1779705033000,-1000.0,0.00014169,2]
[422982829,1779705033000,-791.0,0.00014169,2]
[422982842,1779705033000,-579.0,0.00017144,2]
[422982840,1779705033000,-1000.0,0.00017144,2]
[422982839,1779705033000,-200.0,0.00016438,2]
[422982837,1779705033000,-187.321,0.00016298,2]
[422982841,1779705033000,-1000.0,0.00017144,2]
[422982833,1779705033000,-259.81368636,0.00015107,2]
[422982835,1779705033000,-1000.0,0.00015585,2]
[422982830,1779705033000,-477.3,0.00014246,2]
[422982832,1779705033000,-786.57,0.0001452,2]
[422982831,1779705033000,-786.56,0.00014246,2]
[422982836,1779705033000,-1000.0,0.00015585,2]
[422982900,1779705038000,-377.28707,0.00019673,2]
[422982896,1779705038000,-664.19867088,0.00019481,2]
[422982902,1779705038000,-160.0,0.00019673,2]
[422982899,1779705038000,-160.0,0.00019673,2]
[422982898,1779705038000,-465.64782534,0.00019558,2]
[422982897,1779705038000,-357.5794411,0.00019521,2]
[422982904,1779705038000,-91.94248677,0.00019673,2]
[422982903,1779705038000,-87.20580623,0.00019673,2]
[422982905,1779705038000,-198.296587,0.00019673,2]
[422982907,1779705038000,-19365.38212506,0.00019828,2]
[422982906,1779705038000,-201.676909,0.00019676,2]
[422982908,1779705038000,-14706.76961443,0.00019828,2]
[422982901,1779705038000,-594.574141,0.00019673,2]
[422982920,1779705040000,-1842.40989433,0.00019828,2]
[422982919,1779705040000,-46.1574219,0.00019828,2]
[422982918,1779705040000,-310.43188356,0.00019558,2]
[422982916,1779705040000,-196.49,0.00019178,3]
[422982917,1779705040000,-299.350245,0.00019828,2]
[422982969,1779705043000,-155.21594178,0.00019558,2]
[422982971,1779705043000,-934.25316766,0.00019828,2]
[422982970,1779705043000,-1070.49831201,0.00019828,2]
[422982993,1779705046000,-7408.94175514,0.00019828,2]
[422982992,1779705046000,-9567.49650068,0.00019828,2]
[422982990,1779705046000,-155.21594178,0.00019558,2]
[422982991,1779705046000,-9736.2737853,0.00019828,2]
[422982994,1779705111000,4402.72455989,8.353e-05,2]
[422983001,1779705548000,-2500.00060522,7.895e-05,2]
[422983003,1779705714000,-336.83923294,7.737e-05,2]
[422983004,1779705733000,-561.73993565,7.815e-05,2]
[422983005,1779705744000,-1778.73083141,7.816e-05,2]
[422983006,1779705769000,-2007.33,7.738e-05,2]
[422983011,1779706030000,-432.18759824,7.508e-05,2]
[422983012,1779706033000,-298.20003546,7.508e-05,2]
[422983013,1779706048000,-198.67250597,7.508e-05,2]
[422983014,1779706048000,-165.32401139,7.508e-05,2]
[422983015,1779706087000,-3905.61584894,7.508e-05,2]
[422983016,1779706104000,-372.11015106,7.508e-05,2]
[422983017,1779706164000,-927.9269331,7.433e-05,2]
[422983019,1779706229000,-2180.3624654,7.433e-05,2]
[422983039,1779706232000,-22.07472288,7.507e-05,2]
[422983067,1779706238000,-477.23347081,7.507e-05,2]
[422983068,1779706238000,-1918.2501164,7.508e-05,2]
[422983069,1779706238000,-2709.63973254,7.508e-05,2]
[422983070,1779706238000,-140.30338453,7.582e-05,2]
[422983066,1779706238000,-477.92527712,7.507e-05,2]
[422983103,1779706240000,-150.0,7.7e-05,2]
[422983105,1779706240000,-514.66,8.219e-05,2]
[422983104,1779706240000,-500.45758487,8.219e-05,2]
[422983102,1779706240000,-228.32728087,7.582e-05,2]
[422983101,1779706240000,-18.3693346,7.582e-05,2]
[422983106,1779706240000,-172.00274798,8.219e-05,2]
[422983181,1779706243000,-500.55945971,8.35e-05,2]
[422983179,1779706243000,-556.12605269,8.35e-05,2]
[422983178,1779706243000,-500.0,8.35e-05,2]
[422983161,1779706243000,-327.99725202,8.219e-05,2]
[422983165,1779706243000,-518.32,8.219e-05,2]
[422983163,1779706243000,-549.14,8.219e-05,2]
[422983183,1779706243000,-429.60097038,8.35e-05,2]
[422983176,1779706243000,-340.84916339,8.35e-05,2]
[422983169,1779706243000,-589.08701475,8.219e-05,2]
[422983186,1779706243000,-611.33239356,8.351e-05,2]
[422983167,1779706243000,-560.94,8.219e-05,2]
[422983191,1779706243000,-500.32792201,8.351e-05,2]
[422983172,1779706243000,-600.27529481,8.219e-05,2]
[422983174,1779706243000,-304.96,8.219e-05,2]
[422983185,1779706243000,-631.14536318,8.351e-05,2]
[422983188,1779706243000,-500.20192309,8.351e-05,2]
[422983192,1779706243000,-637.6,8.351e-05,2]
[422983190,1779706243000,-500.28440677,8.351e-05,2]
[422983193,1779706243000,-527.45630639,8.351e-05,2]
[422983170,1779706243000,-561.04998285,8.219e-05,2]
[422983196,1779706244000,245.2689346,7.506e-05,2]
[422983205,1779706246000,-146.03318196,7.506e-05,2]
[422983207,1779706246000,-562.43,8.351e-05,2]
[422983208,1779706246000,-560.63,8.351e-05,2]
[422983209,1779706246000,-500.0,8.351e-05,2]
[422983210,1779706246000,-614.46288908,8.351e-05,2]
[422983211,1779706246000,-500.0,8.351e-05,2]
[422983213,1779706246000,-30.27379242,8.352e-05,2]
[422983212,1779706246000,-500.0,8.351e-05,2]
[422983206,1779706246000,-105.41369361,8.351e-05,2]
[422983218,1779706247000,-33.13333727,8.352e-05,2]
[422983214,1779706247000,-574.61620758,8.352e-05,2]
[422983216,1779706247000,-601.94,8.352e-05,2]
[422983215,1779706247000,-606.56,8.352e-05,2]
[422983217,1779706247000,-1811.86379242,8.352e-05,2]
[422983230,1779706833000,-300.0,7.962e-05,2]
[422983229,1779706833000,-447.75852446,7.806e-05,2]
[422983228,1779706833000,-500.0,7.806e-05,2]
[422983226,1779706833000,-500.0,7.806e-05,2]
[422983222,1779706833000,-5000.0,7.728e-05,2]
[422983225,1779706833000,-5000.0,7.806e-05,2]
[422983224,1779706833000,-500.0,7.805e-05,2]
[422983223,1779706833000,-175.96400373,7.805e-05,2]
[422983231,1779706833000,-2043.9633072,7.965e-05,2]
[422983227,1779706833000,-500.0,7.806e-05,2]
[422983232,1779706833000,-150.0,7.992e-05,2]
[422983241,1779706833000,-500.0,8.351e-05,2]
[422983233,1779706833000,-500.0,8.35e-05,2]
[422983235,1779706833000,-500.0,8.351e-05,2]
[422983243,1779706833000,-500.0,8.351e-05,2]
[422983240,1779706833000,-500.0,8.351e-05,2]
[422983244,1779706833000,-500.0,8.351e-05,2]
[422983242,1779706833000,-500.0,8.351e-05,2]
[422983238,1779706833000,-500.0,8.351e-05,2]
[422983237,1779706833000,-500.0,8.351e-05,2]
[422983239,1779706833000,-500.0,8.351e-05,2]
[422983234,1779706833000,-506.82761138,8.35e-05,2]
[422983236,1779706833000,-500.0,8.351e-05,2]
[422983254,1779706834000,-500.0,8.351e-05,2]
[422983256,1779706834000,-500.0,8.351e-05,2]
[422983257,1779706834000,-500.0,8.351e-05,2]
[422983255,1779706834000,-236.09307056,8.351e-05,2]
[422983252,1779706834000,-500.0,8.351e-05,2]
[422983253,1779706834000,-500.0,8.351e-05,2]
[422983247,1779706834000,-500.0,8.351e-05,2]
[422983249,1779706834000,-500.0,8.351e-05,2]
[422983250,1779706834000,-500.0,8.351e-05,2]
[422983248,1779706834000,-500.0,8.351e-05,2]
[422983258,1779706834000,-334.33493022,8.351e-05,2]
[422983246,1779706834000,-500.0,8.351e-05,2]
[422983245,1779706834000,-500.0,8.351e-05,2]
[422983251,1779706834000,-500.0,8.351e-05,2]
[422983260,1779706834000,-358.8060726,8.351e-05,2]
[422983259,1779706834000,-500.8436917,8.351e-05,2]
[422983261,1779706834000,-500.0,8.351e-05,2]
[422983262,1779706834000,-500.0,8.351e-05,2]
[422983277,1779706834000,-500.0,8.472e-05,2]
[422983276,1779706834000,-500.0,8.472e-05,2]
[422983275,1779706834000,-500.0,8.472e-05,2]
[422983273,1779706834000,-500.0,8.472e-05,2]
[422983274,1779706834000,-500.0,8.472e-05,2]
[422983272,1779706834000,-500.0,8.472e-05,2]
[422983271,1779706834000,-500.0,8.472e-05,2]
[422983268,1779706834000,-500.0,8.472e-05,2]
[422983269,1779706834000,-500.0,8.472e-05,2]
[422983267,1779706834000,-500.0,8.472e-05,2]
[422983265,1779706834000,-500.0,8.472e-05,2]
[422983266,1779706834000,-500.0,8.472e-05,2]
[422983264,1779706834000,-500.0,8.472e-05,2]
[422983263,1779706834000,-500.0,8.351e-05,2]
[422983270,1779706834000,-500.0,8.472e-05,2]
[422983287,1779706835000,-500.0,8.473e-05,2]
[422983292,1779706835000,-500.0,8.473e-05,2]
[422983291,1779706835000,-500.0,8.473e-05,2]
[422983293,1779706835000,-500.0,8.473e-05,2]
[422983290,1779706835000,-500.0,8.473e-05,2]
[422983289,1779706835000,-666.26,8.473e-05,2]
[422983288,1779706835000,-3169.55,8.473e-05,2]
[422983278,1779706835000,-211.08749409,8.472e-05,2]
[422983285,1779706835000,-500.0,8.473e-05,2]
[422983284,1779706835000,-500.0,8.473e-05,2]
[422983283,1779706835000,-689.29,8.472e-05,2]
[422983282,1779706835000,-678.25,8.472e-05,2]
[422983279,1779706835000,-500.0,8.472e-05,2]
[422983281,1779706835000,-500.0,8.472e-05,2]
[422983280,1779706835000,-500.0,8.472e-05,2]
[422983286,1779706835000,-500.0,8.473e-05,2]
[422983294,1779706835000,-679.22,8.473e-05,2]
[422983299,1779706835000,-300.0,8.474e-05,2]
[422983296,1779706835000,-500.0,8.473e-05,2]
[422983295,1779706835000,-500.0,8.473e-05,2]
[422983311,1779706835000,-300.0,8.474e-05,2]
[422983312,1779706835000,-300.0,8.474e-05,2]
[422983310,1779706835000,-300.0,8.474e-05,2]
[422983307,1779706835000,-300.0,8.474e-05,2]
[422983308,1779706835000,-300.0,8.474e-05,2]
[422983306,1779706835000,-300.0,8.474e-05,2]
[422983309,1779706835000,-300.0,8.474e-05,2]
[422983303,1779706835000,-300.0,8.474e-05,2]
[422983304,1779706835000,-300.0,8.474e-05,2]
[422983302,1779706835000,-300.0,8.474e-05,2]
[422983297,1779706835000,-948.9275,8.473e-05,2]
[422983300,1779706835000,-300.0,8.474e-05,2]
[422983301,1779706835000,-300.0,8.474e-05,2]
[422983298,1779706835000,-300.0,8.474e-05,2]
[422983305,1779706835000,-300.0,8.474e-05,2]
[422983313,1779706836000,500.0,8.351e-05,2]
[422983314,1779706836000,500.0,8.472e-05,2]
[422983315,1779706837000,921.45253931,8.5e-05,2]
[422983316,1779706838000,500.0,8.472e-05,2]
[422983317,1779706840000,500.0,8.35e-05,2]
[422983322,1779707140000,-160.47691917,8.263e-05,2]
[422983325,1779707144000,-500.0,8.264e-05,2]
[422983323,1779707144000,-139.52308083,8.263e-05,2]
[422983326,1779707144000,-500.0,8.264e-05,2]
[422983324,1779707144000,-500.0,8.264e-05,2]
[422983331,1779707144000,-143.61321598,8.264e-05,2]
[422983328,1779707144000,-500.0,8.264e-05,2]
[422983329,1779707144000,-500.0,8.264e-05,2]
[422983330,1779707144000,-500.0,8.264e-05,2]
[422983327,1779707144000,-500.0,8.264e-05,2]
[422983333,1779707247000,-223.5971406,8.18e-05,2]
[422983354,1779707433000,-500.0,8.097e-05,2]
[422983350,1779707433000,-500.0,8.097e-05,2]
[422983358,1779707433000,-500.0,8.097e-05,2]
[422983361,1779707433000,-500.0,8.097e-05,2]
[422983363,1779707433000,-348.79568857,8.097e-05,2]
[422983360,1779707433000,-500.0,8.097e-05,2]
[422983367,1779707433000,-300.0,8.261e-05,2]
[422983366,1779707433000,-5000.0,8.098e-05,2]
[422983368,1779707433000,-150.0,8.264e-05,2]
[422983370,1779707433000,-500.0,8.349e-05,2]
[422983369,1779707433000,-354.77932797,8.349e-05,2]
[422983365,1779707433000,-329.26467509,8.097e-05,2]
[422983381,1779707434000,-500.0,8.349e-05,2]
[422983386,1779707434000,-500.0,8.35e-05,2]
[422983385,1779707434000,-500.0,8.35e-05,2]
[422983383,1779707434000,-500.0,8.35e-05,2]
[422983384,1779707434000,-500.0,8.35e-05,2]
[422983382,1779707434000,-500.0,8.349e-05,2]
[422983379,1779707434000,-500.0,8.349e-05,2]
[422983371,1779707434000,-500.0,8.349e-05,2]
[422983378,1779707434000,-500.0,8.349e-05,2]
[422983376,1779707434000,-500.0,8.349e-05,2]
[422983377,1779707434000,-500.0,8.349e-05,2]
[422983375,1779707434000,-500.0,8.349e-05,2]
[422983373,1779707434000,-500.0,8.349e-05,2]
[422983374,1779707434000,-500.0,8.349e-05,2]
[422983372,1779707434000,-500.0,8.349e-05,2]
[422983380,1779707434000,-500.0,8.349e-05,2]
[422983387,1779707434000,-500.0,8.35e-05,2]
[422983388,1779707434000,-500.0,8.35e-05,2]
[422983390,1779707434000,-500.0,8.35e-05,2]
[422983389,1779707434000,-500.0,8.35e-05,2]
[422983406,1779707434000,-500.0,8.472e-05,2]
[422983407,1779707434000,-649.99,8.472e-05,2]
[422983405,1779707434000,-500.0,8.472e-05,2]
[422983404,1779707434000,-500.0,8.472e-05,2]
[422983402,1779707434000,-948.9275,8.472e-05,2]
[422983401,1779707434000,-500.0,8.35e-05,2]
[422983400,1779707434000,-500.0,8.35e-05,2]
[422983403,1779707434000,-500.0,8.472e-05,2]
[422983399,1779707434000,-500.0,8.35e-05,2]
[422983397,1779707434000,-500.0,8.35e-05,2]
[422983396,1779707434000,-500.0,8.35e-05,2]
[422983394,1779707434000,-650.92,8.35e-05,2]
[422983391,1779707434000,-500.0,8.35e-05,2]
[422983395,1779707434000,-500.0,8.35e-05,2]
[422983393,1779707434000,-500.0,8.35e-05,2]
[422983392,1779707434000,-456.80964206,8.35e-05,2]
[422983398,1779707434000,-500.0,8.35e-05,2]
[422983416,1779707435000,-151.0,8.5e-05,2]
[422983414,1779707435000,-500.0,8.472e-05,2]
[422983415,1779707435000,-500.0,8.472e-05,2]
[422983413,1779707435000,-500.0,8.472e-05,2]
[422983409,1779707435000,-500.0,8.472e-05,2]
[422983411,1779707435000,-500.0,8.472e-05,2]
[422983410,1779707435000,-3037.48,8.472e-05,2]
[422983408,1779707435000,-660.57,8.472e-05,2]
[422983417,1779707435000,-151.0,8.5e-05,2]
[422983412,1779707435000,-638.5,8.472e-05,2]
[422983419,1779707435000,-500.0,8.623e-05,2]
[422983418,1779707435000,-157.97562407,8.5e-05,2]
[422983420,1779707435000,-500.0,8.623e-05,2]
[422983421,1779707435000,-500.0,8.623e-05,2]
[422983431,1779707435000,-500.0,8.623e-05,2]
[422983429,1779707435000,-500.0,8.623e-05,2]
[422983430,1779707435000,-500.0,8.623e-05,2]
[422983428,1779707435000,-134.61897727,8.623e-05,2]
[422983432,1779707435000,-193.98254534,8.623e-05,2]
[422983426,1779707435000,-221.55979595,8.623e-05,2]
[422983424,1779707435000,-303.50802436,8.623e-05,2]
[422983425,1779707435000,-278.44020405,8.623e-05,2]
[422983422,1779707435000,-500.0,8.623e-05,2]
[422983427,1779707435000,-365.38102273,8.623e-05,2]
[422983423,1779707435000,-196.49197564,8.623e-05,2]
[422983433,1779707437000,500.0,8.35e-05,2]
[422983473,1779707438000,-523.78931486,8.624e-05,2]
[422983476,1779707438000,-650.92,8.624e-05,2]
[422983477,1779707438000,-500.0,8.624e-05,2]
[422983478,1779707438000,-500.0,8.624e-05,2]
[422983479,1779707438000,-500.0,8.624e-05,2]
[422983481,1779707438000,-500.0,8.624e-05,2]
[422983482,1779707438000,-357.88388413,8.624e-05,2]
[422983470,1779707438000,-500.0,8.624e-05,2]
[422983480,1779707438000,-500.0,8.624e-05,2]
[422983474,1779707438000,-500.0,8.624e-05,2]
[422983465,1779707438000,-500.0,8.623e-05,2]
[422983472,1779707438000,-500.0,8.624e-05,2]
[422983468,1779707438000,-453.35155849,8.624e-05,2]
[422983467,1779707438000,-46.64844151,8.624e-05,2]
[422983471,1779707438000,-500.0,8.624e-05,2]
[422983469,1779707438000,-500.0,8.624e-05,2]
[422983466,1779707438000,-500.0,8.624e-05,2]
[422983486,1779707438000,-500.0,8.746e-05,2]
[422983463,1779707438000,-306.01745466,8.623e-05,2]
[422983464,1779707438000,-500.0,8.623e-05,2]
[422983475,1779707438000,-500.0,8.624e-05,2]
[422983484,1779707438000,-500.0,8.624e-05,2]
[422983505,1779707438000,-500.0,8.897e-05,2]
[422983483,1779707438000,-500.0,8.624e-05,2]
[422983485,1779707438000,-538.16608787,8.625e-05,2]
[422983504,1779707438000,-500.0,8.897e-05,2]
[422983508,1779707438000,-442.54746374,8.897e-05,2]
[422983507,1779707438000,-500.0,8.897e-05,2]
[422983503,1779707438000,-500.0,8.897e-05,2]
[422983502,1779707438000,-500.0,8.897e-05,2]
[422983501,1779707438000,-41472.25865107,8.799e-05,2]
[422983500,1779707438000,-600.0,8.795e-05,2]
[422983499,1779707438000,-500.0,8.746e-05,2]
[422983496,1779707438000,-638.5,8.746e-05,2]
[422983506,1779707438000,-500.0,8.897e-05,2]
[422983494,1779707438000,-3037.48,8.746e-05,2]
[422983497,1779707438000,-500.0,8.746e-05,2]
[422983488,1779707438000,-500.0,8.746e-05,2]
[422983487,1779707438000,-948.9275,8.746e-05,2]
[422983489,1779707438000,-500.0,8.746e-05,2]
[422983490,1779707438000,-500.0,8.746e-05,2]
[422983491,1779707438000,-649.99,8.746e-05,2]
[422983493,1779707438000,-500.0,8.746e-05,2]
[422983498,1779707438000,-500.0,8.746e-05,2]
[422983495,1779707438000,-500.0,8.746e-05,2]
[422983492,1779707438000,-660.57,8.746e-05,2]
[422983544,1779707446000,-212.07396374,8.623e-05,2]
[422983542,1779707446000,-500.0,8.349e-05,2]
[422983543,1779707446000,-287.92603626,8.5e-05,2]
[422983546,1779707519000,-5000.0,8.016e-05,2]
[422983545,1779707519000,-1325.09333628,7.936e-05,2]
[422983547,1779707519000,-203.25163056,8.097e-05,2]
[422983552,1779707519000,-500.95760714,8.349e-05,2]
[422983548,1779707519000,-500.61246359,8.349e-05,2]
[422983550,1779707519000,-500.0,8.349e-05,2]
[422983551,1779707519000,-500.55307387,8.349e-05,2]
[422983549,1779707519000,-500.0,8.349e-05,2]
[422983555,1779707520000,-500.0,8.349e-05,2]
[422983553,1779707520000,-500.0,8.349e-05,2]
[422983556,1779707520000,-633.77,8.349e-05,2]
[422983554,1779707520000,-636.72,8.349e-05,2]
[422983557,1779707520000,-616.61912743,8.349e-05,2]
[422983561,1779707520000,-500.0,8.472e-05,2]
[422983560,1779707520000,-500.0,8.472e-05,2]
[422983559,1779707520000,-596.68,8.472e-05,2]
[422983558,1779707520000,-500.0,8.35e-05,2]
[422983563,1779707520000,500.0,8.35e-05,2]
[422983562,1779707520000,-500.0,8.472e-05,2]
[422983564,1779707522000,150.0,7.976e-05,2]
[422983570,1779707799000,1500.0,0.0001,30]
[422983574,1779708026000,-150.0,8.265e-05,2]
[422983573,1779708026000,-5000.0,8.101e-05,2]
[422983576,1779708026000,-300.0,8.347e-05,2]
[422983575,1779708026000,-248.34552958,8.347e-05,2]
[422983579,1779708026000,-500.0,8.348e-05,2]
[422983577,1779708026000,-500.0,8.347e-05,2]
[422983580,1779708026000,-500.0,8.348e-05,2]
[422983578,1779708026000,-500.0,8.348e-05,2]
[422983594,1779708027000,-500.0,8.348e-05,2]
[422983595,1779708027000,-500.0,8.348e-05,2]
[422983593,1779708027000,-500.0,8.348e-05,2]
[422983592,1779708027000,-500.0,8.348e-05,2]
[422983591,1779708027000,-500.0,8.348e-05,2]
[422983590,1779708027000,-500.0,8.348e-05,2]
[422983587,1779708027000,-500.0,8.348e-05,2]
[422983582,1779708027000,-500.0,8.348e-05,2]
[422983588,1779708027000,-500.0,8.348e-05,2]
[422983584,1779708027000,-500.0,8.348e-05,2]
[422983585,1779708027000,-500.0,8.348e-05,2]
[422983586,1779708027000,-500.0,8.348e-05,2]
[422983583,1779708027000,-514.7,8.348e-05,2]
[422983581,1779708027000,-501.34953976,8.348e-05,2]
[422983597,1779708027000,-500.0,8.348e-05,2]
[422983589,1779708027000,-500.0,8.348e-05,2]
[422983596,1779708027000,-500.0,8.348e-05,2]
[422983608,1779708027000,-500.0,8.348e-05,2]
[422983600,1779708027000,-500.0,8.348e-05,2]
[422983599,1779708027000,-399.88068325,8.348e-05,2]
[422983614,1779708027000,-501.4782605,8.348e-05,2]
[422983613,1779708027000,-607.37,8.348e-05,2]
[422983612,1779708027000,-610.19,8.348e-05,2]
[422983610,1779708027000,-500.0,8.348e-05,2]
[422983611,1779708027000,-500.0,8.348e-05,2]
[422983609,1779708027000,-501.46231995,8.348e-05,2]
[422983615,1779708027000,-501.35207673,8.348e-05,2]
[422983607,1779708027000,-500.0,8.348e-05,2]
[422983604,1779708027000,-500.0,8.348e-05,2]
[422983605,1779708027000,-444.45257057,8.348e-05,2]
[422983602,1779708027000,-500.0,8.348e-05,2]
[422983603,1779708027000,-500.0,8.348e-05,2]
[422983598,1779708027000,-501.25996957,8.348e-05,2]
[422983606,1779708027000,-500.0,8.348e-05,2]
[422983601,1779708027000,-500.0,8.348e-05,2]
[422983629,1779708028000,-500.0,8.349e-05,2]
[422983626,1779708028000,-500.0,8.349e-05,2]
[422983624,1779708028000,-500.0,8.349e-05,2]
[422983625,1779708028000,-529.82239356,8.349e-05,2]
[422983622,1779708028000,-501.76763941,8.349e-05,2]
[422983617,1779708028000,-501.42734528,8.349e-05,2]
[422983621,1779708028000,-500.0,8.349e-05,2]
[422983620,1779708028000,-500.0,8.349e-05,2]
[422983619,1779708028000,-500.0,8.349e-05,2]
[422983618,1779708028000,-500.0,8.349e-05,2]
[422983616,1779708028000,-501.3716663,8.348e-05,2]
[422983627,1779708028000,-500.0,8.349e-05,2]
[422983623,1779708028000,-511.74729863,8.349e-05,2]
[422983630,1779708028000,-500.0,8.349e-05,2]
[422983636,1779708028000,-500.0,8.349e-05,2]
[422983631,1779708028000,-501.10207706,8.349e-05,2]
[422983632,1779708028000,-1125.8787,8.349e-05,2]
[422983633,1779708028000,-500.0,8.349e-05,2]
[422983634,1779708028000,-162.2485441,8.349e-05,2]
[422983635,1779708028000,-500.0,8.349e-05,2]
[422983637,1779708028000,-500.0,8.349e-05,2]
[422983639,1779708028000,-500.0,8.349e-05,2]
[422983638,1779708028000,-500.0,8.349e-05,2]
[422983640,1779708028000,-502.70699006,8.35e-05,2]
[422983641,1779708028000,-500.0,8.35e-05,2]
[422983642,1779708028000,-614.20087224,8.35e-05,2]
[422983644,1779708028000,-500.0,8.472e-05,2]
[422983643,1779708028000,-1731.4543984,8.433e-05,2]
[422983628,1779708028000,-500.0,8.349e-05,2]
[422983645,1779708032000,500.0,8.347e-05,2]
[422983647,1779708344000,-332.2327681,7.439e-05,2]
[422983649,1779708344000,-150.0,7.557e-05,2]
[422983650,1779708344000,-21.12074551,7.6e-05,2]
[422983648,1779708344000,-954.1481358,7.514e-05,2]
[422983664,1779708442000,-441.95356806,7.524e-05,2]
[422983728,1779708632000,-500.0,8.347e-05,2]
[422983735,1779708632000,-500.0,8.347e-05,2]
[422983726,1779708632000,-500.0,8.347e-05,2]
[422983737,1779708632000,-500.0,8.347e-05,2]
[422983723,1779708632000,-500.0,8.347e-05,2]
[422983721,1779708632000,-500.0,8.347e-05,2]
[422983719,1779708632000,-500.0,8.347e-05,2]
[422983730,1779708632000,-500.0,8.347e-05,2]
[422983715,1779708632000,-216.8664316,8.346e-05,2]
[422983711,1779708632000,-79.28383741,7.6e-05,2]
[422983709,1779708632000,-2425.47473491,7.6e-05,2]
[422983713,1779708632000,-500.0,8.346e-05,2]
[422983707,1779708632000,-150.0,7.562e-05,2]
[422983717,1779708632000,-173.8418707,8.346e-05,2]
[422983732,1779708632000,-500.0,8.347e-05,2]
[422983724,1779708632000,-500.0,8.347e-05,2]
[422983738,1779708632000,-500.0,8.347e-05,2]
[422983751,1779708632000,-564.43,8.347e-05,2]
[422983734,1779708632000,-500.0,8.347e-05,2]
[422983753,1779708632000,-500.0,8.347e-05,2]
[422983752,1779708632000,-500.0,8.347e-05,2]
[422983748,1779708632000,-500.0,8.347e-05,2]
[422983750,1779708632000,-500.0,8.347e-05,2]
[422983745,1779708632000,-500.0,8.347e-05,2]
[422983749,1779708632000,-500.0,8.347e-05,2]
[422983754,1779708632000,-458.72267823,8.347e-05,2]
[422983743,1779708632000,-500.0,8.347e-05,2]
[422983747,1779708632000,-1125.8787,8.347e-05,2]
[422983744,1779708632000,-500.0,8.347e-05,2]